Cogmind - Beta 12 @@@ ROGUE MODE // 2023.04.12 @ 11:58:23 Player: ZLD1 Result: Destroyed by G-34 Mercenary with Small Laser Performance ------------- Evolutions (0) 0 Regions Visited (1) 200 Robots Destroyed (6) 30 Value Destroyed (203) 203 Prototype IDs (2) 40 Alien Tech Used (0) 0 Bonus (0) 0 TOTAL SCORE: 473 Bonus ------- None Cogmind --------- Core Integrity 0/250 Matter 256/300 Energy 98/100 System Corruption 0% Temperature Danger (469) Movement Walking (120) Location -10/Materials Parts ------- > --- POWER (1) -------- (None) > --- PROPULSION (2) --- Aluminum Leg > --- UTILITY (2) ------ Small Storage Unit > --- WEAPON (2) ------- Medium Laser > --- INVENTORY (8) ---- Light Ion Engine Light Nuclear Core Aluminum Leg Aluminum Leg Seismic Detector Light Armor Plating Particle Gun Peak State ------------ > --- POWER ------------ Ion Engine > --- PROPULSION ------- Aluminum Leg Aluminum Leg > --- UTILITY ---------- Small Storage Unit > --- WEAPON ----------- Medium Laser Medium Laser > --- INVENTORY -------- Light Ion Engine Light Nuclear Core Aluminum Leg Aluminum Leg Seismic Detector Light Armor Plating Particle Gun [Rating: 7] Favorites ----------- Power Ion Engine Engine Ion Engine Propulsion Aluminum Leg Leg Aluminum Leg Utility Small Storage Unit Storage Small Storage Unit Weapon Medium Laser Energy Gun Medium Laser Build | -11 -10 ------- Run | Jun Mat Slots Evolved . | . . Power . | . . Propulsion . | . . Utility . | . . Weapon . | . . Parts Attached 7 | 7 . Power 2 | 2 . Engine 2 | 2 . Core . | . . Reactor . | . . Propulsion 2 | 2 . Treads . | . . Leg 2 | 2 . Wheel . | . . Hover . | . . Flight . | . . Utility 1 | 1 . Device . | . . Storage 1 | 1 . Processor . | . . Hackware . | . . Protection . | . . Artifact . | . . Weapon 2 | 2 . Energy Gun 2 | 2 . Energy Cannon . | . . Ballistic Gun . | . . Ballistic Cannon . | . . Launcher . | . . Special Weapon . | . . Impact Weapon . | . . Slashing Weapon . | . . Piercing Weapon . | . . Special Melee Weapon . | . . Unidentified Prototypes . | . . Parts Lost 3 | . 3 Power 1 | . 1 Propulsion 1 | . 1 Utility . | . . Weapon 1 | . 1 Highest Loss Streak 3 | . 3 To Critical Strikes . | . . Average Slot Usage (%) 84 | . 84 Engine 14 | . 14 Leg 27 | . 27 Storage 14 | . 14 Energy Gun 28 | . 28 Naked Turns . | . . Heaviest Build 14 | 14 14 Greatest Support 20 | 20 20 Greatest Overweight (x) . | . . Average Overweight (x) . | . . Largest Inventory Capacity 8 | 8 8 Average Capacity 7 | 7 8 Most Carried 7 | 5 7 Average Carried 3 | 1 4 Final Capacity 8 | 8 8 Final Carried 7 | 2 7 Class Distribution -------------------- 100% | Mutant Dominant Class ---------------- Mutant | -10/Materials Resources | -11 -10 ----------- Run | Jun Mat Matter Collected 237 | 186 51 Remotely . | . . Salvage Created 249 | 25 224 Parts 14 | 4 10 Haulers Intercepted . | . . Recyclers Shooed 2 | . 2 Parts Field Recycled . | . . Retrieved Matter . | . . Parts Self-Destructed . | . . Prevented . | . . Kills | -11 -10 ------- Run | Jun Mat Combat Hostiles Destroyed 5 | . 5 Guns 5 | . 5 Classes Destroyed 2 | 1 1 Tunneler 1 | 1 . Grunt 5 | . 5 Best Kill Streak 3 | 1 3 Combat Bots Only 3 | . 3 Max Kills in Single Turn 1 | 1 1 Gunslinging . | . . Exploded . | . . Melee . | . . Uniques/NPCs Destroyed . | . . Combat | -11 -10 -------- Run | Jun Mat Damage Taken 599 | . 599 Core 259 | . 259 Absorbed by Shields . | . . Core Remaining (%) 100 | 100 . Volleys Fired 29 | 2 27 Largest 2 | 2 2 Hottest 100 | 100 100 Shots Fired 48 | 4 44 Gun 48 | 4 44 Cannon . | . . Launcher . | . . Special . | . . Kinetic . | . . Thermal 48 | 4 44 Explosive . | . . Electromagnetic . | . . Robot Hit Streak 9 | 2 9 Robot Miss Streak 2 | 1 2 Penetration Max . | . . Secondary Targets . | . . Shots Hit Robots 32 | 2 30 Core Hits 16 | 1 15 Critical Kills . | . . Critical Parts Destroyed . | . . Critical Strikes 3 | . 3 Burn 3 | . 3 Melee Attacks . | . . Impact . | . . Slashing . | . . Piercing . | . . Sneak Attacks . | . . Combat Hostiles . | . . Follow-up Attacks . | . . Damage Inflicted 437 | 26 411 Guns 437 | 26 411 Cannons . | . . Explosions . | . . Melee . | . . Ramming . | . . Kinetic . | . . Thermal 437 | 26 411 Explosive . | . . Electromagnetic . | . . Impact . | . . Slashing . | . . Piercing . | . . Highest Corruption . | . . Average Corruption . | . . Corruption Purged . | . . Corruption Blocked . | . . Overload Shots . | . . Overflow Damage . | . . Projectiles . | . . Explosions . | . . Melee . | . . Knockbacks . | . . Impact . | . . Kinetic . | . . Secondary . | . . Self-Inflicted Damage . | . . Shots . | . . Rammed . | . . Targets Rammed . | . . Kicked . | . . Crushed . | . . Highest Temperature 480 | 78 480 Average Temperature 176 | 43 188 Received Heat Transfer 336 | . 336 Effects 4 | . 4 Shutdowns 1 | . 1 Interference 1 | . 1 Matter Decay 1 | . 1 Short Circuit 1 | . 1 Siege Activations . | . . Robots Corrupted . | . . Combat Hostiles . | . . Parts Fried . | . . Impact Corruptions . | . . Robots Melted . | . . Combat Hostiles . | . . Parts Melted 4 | . 4 Heat Transferred 1517 | 74 1443 Parts Sabotaged . | . . Parts Stolen . | . . Parts Stripped . | . . Power Chain Reactions . | . . Missiles Intercepted . | . . Alert | -11 -10 ------- Run | Jun Mat Peak Influence 183 | 5 183 Initial 3 | . 3 Average 50 | . 61 Maximum Alert Level . | . . Low Security (%) 100 | 100 100 Level 1 . | . . Level 2 . | . . Level 3 . | . . Level 4 . | . . Level 5 . | . . High Security . | . . Max Security . | . . Squads Dispatched 1 | . 1 Investigation 1 | . 1 Extermination . | . . Reinforcement . | . . Assault . | . . Garrison . | . . Intercept . | . . Searches Triggered . | . . Construction Impeded . | . . Haulers Reinforced . | . . Active Scanning Responses . | . . Cargo Convoy Interrupts . | . . Stealth | -11 -10 --------- Run | Jun Mat Distress Signals 1 | . 1 Communications Jammed . | . . Distress Signals . | . . Times Spotted 10 | . 10 Peak Tracking Total 5 | . 5 Tactical Retreats 1 | . 1 Traps | -11 -10 ------- Run | Jun Mat Traps Triggered . | . . Indirectly . | . . Trap Hack Attempts . | . . Triggered . | . . Disarmed . | . . Reprogrammed . | . . Reused . | . . Traps Extracted . | . . Installed . | . . Triggered . | . . Machines | -11 -10 ---------- Run | Jun Mat Machines Disabled . | . . Max in Single Turn . | . . Machines Repaired . | . . Machines Sabotaged . | . . Overloaded Fab Kills . | . . Hacking | -11 -10 --------- Run | Jun Mat Machines Accessed 1 | . 1 Terminals 1 | . 1 Fabricators . | . . Repair Stations . | . . Recycling Units . | . . Scanalyzers . | . . Garrison Access . | . . Total Hacks 4 | . 4 Successful 2 | . 2 Failed 2 | . 2 Catastrophic . | . . Database Lockouts . | . . Manual . | . . Terminals 4 | . 4 Fabricators . | . . Repair Stations . | . . Recycling Units . | . . Scanalyzers . | . . Garrison Access . | . . Terminal Hacks 2 | . 2 Prototype ID Bank 1 | . 1 Locate Traps 1 | . 1 Fabricator Hacks . | . . Repair Station Hacks . | . . Recycling Unit Hacks . | . . Scanalyzer . | . . Garrison Access Hacks . | . . Unauthorized Hacks . | . . Terminals . | . . Fabricators . | . . Repair Stations . | . . Recycling Units . | . . Scanalyzers . | . . Garrison Access . | . . Data Cores Recovered . | . . Used . | . . Hacking Detections 1 | . 1 Full Trace Events 1 | . 1 Feedback Events . | . . Feedback Blocked . | . . Robot Schematics Acquired . | . . Robots Built . | . . Authchips . | . . Time . | . . Total Robot Build Rating . | . . Part Schematics Acquired . | . . Parts Built . | . . Authchips . | . . Time . | . . Total Part Build Rating . | . . Parts Repaired . | . . Time . | . . Parts Recycled . | . . Recycled Matter . | . . Retrieved Matter . | . . Retrieved Components . | . . Parts Scanalyzed . | . . Part Schematics Acquired . | . . Parts Damaged . | . . Bothacking | -11 -10 ------------ Run | Jun Mat Used RIF Installer . | . . Robots Hacked . | . . Non-combat . | . . Combat . | . . Robot Hacks Applied . | . . Relay Couplers Released . | . . Fabnet Peak Effective % . | . . Robots Rewired . | . . Allies Hacked . | . . Hacks Repelled . | . . Allies | -11 -10 -------- Run | Jun Mat Total Allies . | . . Largest Group . | . . Highest-Rated Group . | . . Highest-Rated Ally . | . . Total Orders . | . . Ally Attacks . | . . Total Damage . | . . Kills . | . . Allies Corrupted . | . . Allies Melted . | . . Intel | -11 -10 ------- Run | Jun Mat Robot Analysis Total . | . . Derelict Logs Recovered . | . . Drone Launches . | . . Drone Recoveries . | . . Exploration | -11 -10 ------------- Run | Jun Mat Turns Passed 406 | 72 334 Spaces Moved 255 | 55 200 Core 19 | 19 . Treads . | . . Legs 236 | 36 200 Wheels . | . . Hover . | . . Flight . | . . Fastest Speed 50 | 50 120 Average Speed 114 | 95 120 Slowest Speed 120 | 120 120 Overloaded Moves . | . . Propulsion Burnouts . | . . Robots Hopped . | . . Cave-ins Triggered . | . . Exploration Rate (%) 18 | 4 32 Regions Visited 1 Branch Regions . Pre-discovered Areas . | . . Known Exits Taken . | . . Unknown Exits Taken 1 | 1 . Scrap Searched . | . . Spaces Dug . | . . Terrain Destroyed . | . . Melee . | . . Projectile . | . . AOE . | . . Terrain Rammed . | . . Walls Destroyed . | . . Machines Disabled . | . . Actions | -11 -10 --------- Run | Jun Mat Total 320 | 69 251 Wait 19 | . 19 Move 254 | 54 200 Hop . | . . Pick Up 11 | 6 5 Fast Attach 2 | 2 . Attach 4 | 4 . Detach . | . . Swap 1 | 1 . Drop . | . . Fire 29 | 2 27 Melee . | . . Ram . | . . Kick . | . . Crush . | . . Escape Stasis . | . . Rewire . | . . Trap . | . . Miscellaneous . | . . Route ------- -11/Junkyard -10/Materials History --------- Turn | Location | Event 4 | -11/Junkyard | Discovered new exit (range 16) 73 | -11/Junkyard | Entered Materials 302 | -10/Materials | Build established: Mutant 377 | -10/Materials | Core integrity fell below 50% 393 | -10/Materials | Core integrity fell below 20% 407 | -10/Materials | Destroyed by G-34 Mercenary with Small Laser Last Messages --------------- 00376_ G-34 Mercenary destroyed. 00381_ R-06 Scavenger collects Aluminum Leg. 00382_ G-34 Mercenary suffers critical hit (Burn). 00386_ Power failure, Ion Engine shutdown. 00392_ Overheating: Matter decay (-26). 00393_ Heat Sink melted. 00393_ G-34 Mercenary destroyed. 00395_ Aluminum Leg destroyed. 00397_ G-34 Mercenary heat spikes uncontrollably. 00397_ G-34 Mercenary overheating. 00399_ G-34 Mercenary heat damages Ion Engine. 00400_ Ion Engine destroyed. 00401_ Med. Laser destroyed. 00403_ G-34 Mercenary heat short circuits Heat Sink. 00403_ R-06 Scavenger collects Aluminum Leg. 00404_ G-34 Mercenary heat damages Aluminum Leg. 00405_ G-34 Mercenary overheating. 00406_ Med. Laser broken. 00406_ Overheating: Short circuit. 00406_ G-34 Mercenary overheating. Map ----- +----------------------------------------------------+ | ????# # #???????????????????????????????? | | ????# ##+########???????????????????????????????? | | ????# ########?????????????????????????????? | | ????# + #?????????????????????????????? | | ??####+### # #?????????????????????????????? | | ??#! # # #?????????????????????????????? | | ??# + + #?????????????????????????????? | | ??# """ # # =#?????????????????????????????? | | ??# """ # #?? #?????????????????????????????? | | ??# """ # #??#####?????????????????????????????? | | ??# # #????????????????????????????????????? | | ??######## ######????????????###????????????????? | | ?????????# #???????????? #???????????????? | | ?????????# #???????????? T???????????????? | | ?????????# ##+########???? ? #???????????????? | | ?????????# # % #???? ? #???????????????? | | ?????????# # #???? ? #???????????????? | | ?????????# # "" #???? ? #???? ??????????? | | ?????????# #""""" # # #### ???????????? | | ?????????# #""""" # """ # ???????????? | | ?????????# #""""" #?""" + ?? ?????????? | | ?????????# # """ #?""" # ?????????? | | ?????##### # #?? # """" """????????? | | ?????# ###########?? # """" """????????? | | ?????# ##############+## """" """" #????? | | ?????# ## """ #@ %r ???? | | ?????##### ## """ # %gg#t ???? | | ?######### ## """ # [ # """" """" ??????? | | # # ## # # """" """????????? | | # ## # #= """" """" #??? | | # # ## "T" # # #??? | | # # ## """ # # #??? | | ?######### ## ###### """" """ #??? | | ????????# #####+########## """" """????????? | | ????????# """" """????????? | | ????????# ??????? | | ????????# ?????? | | ????????# ############################ ?????? | | ????????###+###??????????????????????????????????? | | ?????????"" "????????????????????????????????????? | | ????????""" "????^??^????????????????????????????? | | ????????""" "????????????????????????????????????? | | ???????? ? ??????????^?????????????????????????? | | ?????????? ????????????????????????????????????? | | ?????????? ????????^???????????????????????????? | | ?????????? ????????????????????????????????????? | | ?????????? ????????????????????????????????????? | | ??????????###????????????????????????????????????? | | ?????????????????????????????????????????????????? | | ?????????????????????????????????????????????????? | +----------------------------------------------------+ Best States ------------- Heat Dissipation 25 Energy Generation 10 Energy Capacity 250 Matter Stores 267 Matter Capacity 300 Sight Range 16 Terrain Scan Density 10 Evasion (%) 55 Item Schematics ----------------- None Robot Schematics ------------------ None Fabricated ------------ Nothing Alien Tech Used ----------------- None Achievements -------------- None Challenges ------------ None Game ------ Seed ArchitectDamperCalibrator Manual? 0 Play Time 00:06:48 Cumulative 30.8 hours Start 2023.04.12 @ 11:49:56 End 2023.04.12 @ 11:58:23 Sessions 1 Manual Loads 0 Difficulty Rogue Special Mode None Game No. 68 Rogue 68 Adventurer 0 Explorer 0 Win Type - Total 0 Types 0/0/0/0/0/0/0/0/0 Lore% 24 Gallery% 35 Achievement% 26 Wizard Run 0 Options --------- ASCII 0 Keyboard 0 Movement Mouse Keybinds 0 Fullscreen 1 Font 24/Smallcaps Map View 64x52 Tactical HUD 1 Map Filters NONE Filters NONE Steam 1 RUN: 7973ae0c-586d-4acb-9033-97b3f790972a